[Event "Titled Tuesday Blitz May 2 Early 2023"]
[White "Kvaloy, Aksel Bu"]
[Black "Jaskolka, Tomasz"]
[WhiteFideId "1528815"]
[BlackFideId "1170791"]
[WhiteElo "2208"]
[BlackElo "2155"]
[Result "1-0"]
[Round "06"]
[TimeControl "180+2"]
[Date "2023.05.02"]
[WhiteClock "0:02:03"]
[BlackClock "0:01:50"]

1. e4 {[%clk 0:03:00]}  c5 {[%clk 0:02:59]} 2. Nf3 {[%clk 0:02:55]}  e6 {[%clk 0:02:59]} 3. d4 {[%clk 0:02:55]}  cxd4 {[%clk 0:03:00]} 4. Nxd4 {[%clk 0:02:55]}  Nc6 {[%clk 0:03:01]} 5. Nc3 {[%clk 0:02:52]}  Qc7 {[%clk 0:03:01]} 6. Be3 {[%clk 0:02:52]}  a6 {[%clk 0:02:59]} 7. g4 {[%clk 0:02:51]}  Nge7 {[%clk 0:02:50]} 8. Qd2 {[%clk 0:02:47]}  Nxd4 {[%clk 0:02:36]} 9. Bxd4 {[%clk 0:02:46]}  Nc6 {[%clk 0:02:37]} 10. Be3 {[%clk 0:02:46]}  b5 {[%clk 0:02:37]} 11. Bf4 {[%clk 0:02:38]}  d6 {[%clk 0:02:25]} 12. O-O-O {[%clk 0:02:37]}  e5 {[%clk 0:02:24]} 13. Nd5 {[%clk 0:02:36]}  Qd8 {[%clk 0:02:23]} 14. Be3 {[%clk 0:02:32]}  Rb8 {[%clk 0:02:17]} 15. f4 {[%clk 0:02:28]}  Bxg4 {[%clk 0:02:15]} 16. Be2 {[%clk 0:02:24]}  Bxe2 {[%clk 0:02:14]} 17. Qxe2 {[%clk 0:02:25]}  exf4 {[%clk 0:02:11]} 18. Bxf4 {[%clk 0:02:26]}  Ne5 {[%clk 0:02:07]} 19. Bxe5 {[%clk 0:02:16]}  dxe5 {[%clk 0:02:07]} 20. Rhf1 {[%clk 0:02:15]}  Qa5 {[%clk 0:02:03]} 21. Qh5 {[%clk 0:02:08]}  Rb7 {[%clk 0:01:54]} 22. Qxe5+ {[%clk 0:02:06]}  Be7 {[%clk 0:01:52]} 23. Nxe7 {[%clk 0:02:03]}  Rxe7 {[%clk 0:01:49]} 24. Qb8+ {[%clk 0:02:02]}  Qd8 {[%clk 0:01:50]} 25. Qxd8# {[%clk 0:02:03]} 1-0


[Site "https://www.chess.com"]

[Event "Titled Tuesday Blitz May 2 Early 2023"]
[White "Karttunen, Mika"]
[Black "Bolourchifard, Farzad"]
[WhiteFideId "502081"]
[BlackFideId "12510084"]
[WhiteElo "2396"]
[BlackElo "2317"]
[Result "0-1"]
[Round "06"]
[TimeControl "180+2"]
[Date "2023.05.02"]
[WhiteClock "0:00:05"]
[BlackClock "0:00:30"]

1. e4 {[%clk 0:03:00]}  e5 {[%clk 0:02:59]} 2. Nf3 {[%clk 0:03:00]}  Nc6 {[%clk 0:02:59]} 3. Bb5 {[%clk 0:03:00]}  a6 {[%clk 0:02:59]} 4. Ba4 {[%clk 0:02:59]}  Nf6 {[%clk 0:03:00]} 5. O-O {[%clk 0:02:57]}  b5 {[%clk 0:03:00]} 6. Bb3 {[%clk 0:02:57]}  Bc5 {[%clk 0:03:01]} 7. c3 {[%clk 0:02:54]}  d6 {[%clk 0:03:01]} 8. d4 {[%clk 0:02:51]}  Bb6 {[%clk 0:03:01]} 9. a4 {[%clk 0:02:47]}  Bb7 {[%clk 0:03:00]} 10. Bg5 {[%clk 0:02:02]}  h6 {[%clk 0:02:59]} 11. Bh4 {[%clk 0:02:01]}  g5 {[%clk 0:02:45]} 12. Bxg5 {[%clk 0:02:00]}  hxg5 {[%clk 0:02:41]} 13. Nxg5 {[%clk 0:02:00]}  Rf8 {[%clk 0:02:21]} 14. f4 {[%clk 0:01:47]}  exd4 {[%clk 0:02:18]} 15. Kh1 {[%clk 0:01:41]}  Na5 {[%clk 0:01:54]} 16. Bc2 {[%clk 0:01:41]}  Nc4 {[%clk 0:01:43]} 17. Re1 {[%clk 0:00:57]}  Ne3 {[%clk 0:01:33]} 18. Qd2 {[%clk 0:00:55]}  Nxc2 {[%clk 0:01:31]} 19. Qxc2 {[%clk 0:00:55]}  d3 {[%clk 0:01:29]} 20. Qxd3 {[%clk 0:00:54]}  Ng4 {[%clk 0:01:29]} 21. Re2 {[%clk 0:00:39]}  Qf6 {[%clk 0:00:55]} 22. Qf3 {[%clk 0:00:25]}  Ne5 {[%clk 0:00:54]} 23. Qg3 {[%clk 0:00:22]}  Ng6 {[%clk 0:00:53]} 24. Nh7 {[%clk 0:00:12]}  Qxf4 {[%clk 0:00:52]} 25. Qxf4 {[%clk 0:00:05]}  Nxf4 {[%clk 0:00:53]} 26. Rd2 {[%clk 0:00:05]}  Rh8 {[%clk 0:00:51]} 27. Ng5 {[%clk 0:00:06]}  f6 {[%clk 0:00:42]} 28. Nf3 {[%clk 0:00:06]}  O-O-O {[%clk 0:00:41]} 29. axb5 {[%clk 0:00:05]}  axb5 {[%clk 0:00:42]} 30. Na3 {[%clk 0:00:06]}  Bxe4 {[%clk 0:00:42]} 31. Nxb5 {[%clk 0:00:07]}  Kb7 {[%clk 0:00:41]} 32. Nbd4 {[%clk 0:00:06]}  Ra8 {[%clk 0:00:40]} 33. Re1 {[%clk 0:00:06]}  Bxf3 {[%clk 0:00:38]} 34. Nxf3 {[%clk 0:00:06]}  Nh5 {[%clk 0:00:38]} 35. g4 {[%clk 0:00:05]}  Nf4 {[%clk 0:00:35]} 36. b4 {[%clk 0:00:03]}  Ng6 {[%clk 0:00:35]} 37. Kg2 {[%clk 0:00:03]}  Ne5 {[%clk 0:00:36]} 38. Nxe5 {[%clk 0:00:03]}  dxe5 {[%clk 0:00:34]} 39. h3 {[%clk 0:00:04]}  Rhg8 {[%clk 0:00:33]} 40. Rf1 {[%clk 0:00:03]}  Ra3 {[%clk 0:00:33]} 41. Rc2 {[%clk 0:00:03]}  Rg6 {[%clk 0:00:33]} 42. Rf5 {[%clk 0:00:03]}  Be3 {[%clk 0:00:33]} 43. Kf3 {[%clk 0:00:03]}  Bf4 {[%clk 0:00:32]} 44. h4 {[%clk 0:00:04]}  Rh6 {[%clk 0:00:31]} 45. h5 {[%clk 0:00:04]}  Bg5 {[%clk 0:00:31]} 46. Ke4 {[%clk 0:00:04]}  Rh8 {[%clk 0:00:30]} 47. Kd5 {[%clk 0:00:04]}  Rd8+ {[%clk 0:00:31]} 48. Kc4 {[%clk 0:00:04]}  Rd1 {[%clk 0:00:31]} 49. Rf3 {[%clk 0:00:03]}  Rg1 {[%clk 0:00:31]} 50. Rh3 {[%clk 0:00:03]}  Rxg4+ {[%clk 0:00:32]} 51. Kd5 {[%clk 0:00:04]}  Ra8 {[%clk 0:00:31]} 52. h6 {[%clk 0:00:05]}  Rh8 {[%clk 0:00:31]} 53. h7 {[%clk 0:00:05]}  Rh4 {[%clk 0:00:29]} 54. Rxh4 {[%clk 0:00:04]}  Bxh4 {[%clk 0:00:30]} 55. Rh2 {[%clk 0:00:03]}  Rxh7 {[%clk 0:00:30]} 56. c4 {[%clk 0:00:04]}  Rd7+ {[%clk 0:00:29]} 57. Ke6 {[%clk 0:00:05]}  Rd6+ {[%clk 0:00:30]} 0-1


[Site "https://www.chess.com"]

[Event "Titled Tuesday Blitz May 2 Early 2023"]
[White "Kucuksari, Kaan"]
[Black "Erzhanov, Arman"]
[WhiteFideId "6380166"]
[BlackFideId "4138821"]
[WhiteElo "2364"]
[BlackElo "2138"]
[Result "1-0"]
[Round "06"]
[TimeControl "180+2"]
[Date "2023.05.02"]
[WhiteClock "0:00:08"]
[BlackClock "0:00:23"]

1. e4 {[%clk 0:03:00]}  d6 {[%clk 0:02:50]} 2. Nf3 {[%clk 0:03:00]}  Nf6 {[%clk 0:02:48]} 3. Nc3 {[%clk 0:02:59]}  e5 {[%clk 0:02:48]} 4. d4 {[%clk 0:02:56]}  Nbd7 {[%clk 0:02:48]} 5. Bc4 {[%clk 0:02:56]}  Be7 {[%clk 0:02:48]} 6. O-O {[%clk 0:02:48]}  O-O {[%clk 0:02:49]} 7. a4 {[%clk 0:02:44]}  a5 {[%clk 0:02:47]} 8. Re1 {[%clk 0:02:43]}  c6 {[%clk 0:02:48]} 9. h3 {[%clk 0:02:43]}  Nb6 {[%clk 0:02:45]} 10. Bf1 {[%clk 0:02:42]}  exd4 {[%clk 0:02:45]} 11. Nxd4 {[%clk 0:02:42]}  d5 {[%clk 0:02:45]} 12. e5 {[%clk 0:02:41]}  Ne8 {[%clk 0:02:46]} 13. Bd3 {[%clk 0:02:32]}  g6 {[%clk 0:02:45]} 14. Bh6 {[%clk 0:02:29]}  Ng7 {[%clk 0:02:45]} 15. f4 {[%clk 0:02:28]}  Re8 {[%clk 0:02:40]} 16. Bxg7 {[%clk 0:02:23]}  Kxg7 {[%clk 0:02:39]} 17. Kh1 {[%clk 0:02:21]}  f5 {[%clk 0:02:32]} 18. g4 {[%clk 0:02:04]}  Bc5 {[%clk 0:02:27]} 19. Nxf5+ {[%clk 0:02:00]}  gxf5 {[%clk 0:02:27]} 20. gxf5 {[%clk 0:02:00]}  Qh4 {[%clk 0:02:25]} 21. Qg4+ {[%clk 0:01:58]}  Qxg4 {[%clk 0:02:25]} 22. hxg4 {[%clk 0:01:59]}  Nd7 {[%clk 0:01:57]} 23. g5 {[%clk 0:01:56]}  Nf8 {[%clk 0:01:56]} 24. f6+ {[%clk 0:01:55]}  Kf7 {[%clk 0:01:45]} 25. Kg2 {[%clk 0:01:52]}  Ng6 {[%clk 0:01:43]} 26. Kf3 {[%clk 0:01:47]}  Nh4+ {[%clk 0:01:39]} 27. Kg3 {[%clk 0:01:45]}  Nf5+ {[%clk 0:01:39]} 28. Kf3 {[%clk 0:01:36]}  Nd4+ {[%clk 0:01:35]} 29. Kg3 {[%clk 0:01:30]}  Bf5 {[%clk 0:01:35]} 30. Rh1 {[%clk 0:01:23]}  Rh8 {[%clk 0:01:32]} 31. Rae1 {[%clk 0:01:13]}  Ke6 {[%clk 0:01:27]} 32. Rh6 {[%clk 0:01:12]}  Rag8 {[%clk 0:01:26]} 33. f7+ {[%clk 0:01:09]}  Rg6 {[%clk 0:01:20]} 34. Rxh7 {[%clk 0:01:00]}  Rf8 {[%clk 0:01:13]} 35. Reh1 {[%clk 0:00:56]}  Bxd3 {[%clk 0:01:11]} 36. cxd3 {[%clk 0:00:56]}  Rxf7 {[%clk 0:01:11]} 37. Rxf7 {[%clk 0:00:56]}  Kxf7 {[%clk 0:01:12]} 38. Kg4 {[%clk 0:00:54]}  Ne6 {[%clk 0:01:08]} 39. Rh7+ {[%clk 0:00:44]}  Rg7 {[%clk 0:01:07]} 40. Rxg7+ {[%clk 0:00:42]}  Nxg7 {[%clk 0:01:05]} 41. Ne2 {[%clk 0:00:41]}  Ke6 {[%clk 0:01:00]} 42. d4 {[%clk 0:00:34]}  Bb6 {[%clk 0:01:00]} 43. f5+ {[%clk 0:00:25]}  Nxf5 {[%clk 0:00:44]} 44. Nf4+ {[%clk 0:00:25]}  Ke7 {[%clk 0:00:37]} 45. Kxf5 {[%clk 0:00:26]}  Bxd4 {[%clk 0:00:37]} 46. Nd3 {[%clk 0:00:13]}  b5 {[%clk 0:00:36]} 47. g6 {[%clk 0:00:12]}  bxa4 {[%clk 0:00:35]} 48. e6 {[%clk 0:00:08]}  c5 {[%clk 0:00:34]} 49. Ne5 {[%clk 0:00:08]}  Kf8 {[%clk 0:00:28]} 50. e7+ {[%clk 0:00:04]}  Kxe7 {[%clk 0:00:27]} 51. g7 {[%clk 0:00:04]}  Bxe5 {[%clk 0:00:27]} 52. g8=Q {[%clk 0:00:05]}  Bxb2 {[%clk 0:00:26]} 53. Qxd5 {[%clk 0:00:05]}  Bd4 {[%clk 0:00:25]} 54. Qe6+ {[%clk 0:00:05]}  Kd8 {[%clk 0:00:25]} 55. Qd6+ {[%clk 0:00:05]}  Kc8 {[%clk 0:00:25]} 56. Qc6+ {[%clk 0:00:06]}  Kb8 {[%clk 0:00:25]} 57. Qxa4 {[%clk 0:00:07]}  Kc7 {[%clk 0:00:24]} 58. Ke6 {[%clk 0:00:07]}  Kb6 {[%clk 0:00:24]} 59. Kd7 {[%clk 0:00:08]}  Bg1 {[%clk 0:00:23]} 60. Qc6+ {[%clk 0:00:08]}  Ka7 {[%clk 0:00:23]} 61. Kc8 {[%clk 0:00:08]} 1-0


[Site "https://www.chess.com"]

[Event "Titled Tuesday Blitz May 2 Early 2023"]
[White "Mrudul Dehankar"]
[Black "Girish, A. Koushik"]
[WhiteFideId "25096990"]
[BlackFideId "5038448"]
[WhiteElo "2139"]
[BlackElo "2398"]
[Result "1-0"]
[Round "06"]
[TimeControl "180+2"]
[Date "2023.05.02"]
[WhiteClock "0:02:12"]
[BlackClock "0:02:40"]

1. e4 {[%clk 0:02:51]}  e5 {[%clk 0:02:58]} 2. Nf3 {[%clk 0:02:50]}  Nc6 {[%clk 0:02:59]} 3. Bb5 {[%clk 0:02:47]}  a6 {[%clk 0:02:58]} 4. Ba4 {[%clk 0:02:47]}  d6 {[%clk 0:02:59]} 5. c3 {[%clk 0:02:43]}  Bd7 {[%clk 0:02:59]} 6. O-O {[%clk 0:02:43]}  g6 {[%clk 0:02:59]} 7. d4 {[%clk 0:02:43]}  Bg7 {[%clk 0:02:59]} 8. Re1 {[%clk 0:02:39]}  b5 {[%clk 0:02:58]} 9. Bc2 {[%clk 0:02:36]}  Nf6 {[%clk 0:02:58]} 10. a4 {[%clk 0:02:35]}  O-O {[%clk 0:02:55]} 11. Nbd2 {[%clk 0:02:32]}  Rb8 {[%clk 0:02:54]} 12. h3 {[%clk 0:02:30]}  Re8 {[%clk 0:02:40]} 13. axb5 {[%clk 0:02:13]}  a5 {[%clk 0:02:40]} 14. bxc6 {[%clk 0:02:12]} 1-0


[Site "https://www.chess.com"]

[Event "Titled Tuesday Blitz May 2 Early 2023"]
[White "Andreev, Konstantin"]
[Black "Dimitrov, Atanas"]
[WhiteFideId "24239305"]
[BlackFideId "2901315"]
[WhiteElo "2106"]
[BlackElo "2269"]
[Result "1/2-1/2"]
[Round "06"]
[TimeControl "180+2"]
[Date "2023.05.02"]
[WhiteClock "0:01:42"]
[BlackClock "0:00:40"]

1. e4 {[%clk 0:03:00]}  c5 {[%clk 0:03:00]} 2. Nf3 {[%clk 0:02:59]}  d6 {[%clk 0:03:00]} 3. d4 {[%clk 0:02:59]}  cxd4 {[%clk 0:03:01]} 4. Nxd4 {[%clk 0:02:59]}  Nf6 {[%clk 0:03:02]} 5. Nc3 {[%clk 0:03:00]}  g6 {[%clk 0:03:02]} 6. Be3 {[%clk 0:02:58]}  Bg7 {[%clk 0:03:03]} 7. Bc4 {[%clk 0:02:59]}  Nc6 {[%clk 0:03:03]} 8. f3 {[%clk 0:02:57]}  Ne5 {[%clk 0:03:03]} 9. Bb3 {[%clk 0:02:57]}  Bd7 {[%clk 0:03:02]} 10. Qd2 {[%clk 0:02:57]}  O-O {[%clk 0:03:01]} 11. O-O-O {[%clk 0:02:58]}  Rc8 {[%clk 0:03:02]} 12. Kb1 {[%clk 0:02:58]}  Nc4 {[%clk 0:03:00]} 13. Bxc4 {[%clk 0:02:59]}  Rxc4 {[%clk 0:03:01]} 14. h4 {[%clk 0:02:59]}  h5 {[%clk 0:03:01]} 15. g4 {[%clk 0:02:59]}  hxg4 {[%clk 0:03:00]} 16. h5 {[%clk 0:03:00]}  Nxh5 {[%clk 0:02:57]} 17. Rdg1 {[%clk 0:02:58]}  g3 {[%clk 0:02:43]} 18. Rxh5 {[%clk 0:02:45]}  gxh5 {[%clk 0:02:43]} 19. Rxg3 {[%clk 0:02:46]}  Kh7 {[%clk 0:02:35]} 20. Qh2 {[%clk 0:02:45]}  Rh8 {[%clk 0:02:19]} 21. Qxh5+ {[%clk 0:02:31]}  Kg8 {[%clk 0:02:18]} 22. Bh6 {[%clk 0:02:06]}  Rh7 {[%clk 0:01:21]} 23. Rxg7+ {[%clk 0:01:47]}  Rxg7 {[%clk 0:01:21]} 24. Bxg7 {[%clk 0:01:48]}  Kxg7 {[%clk 0:01:13]} 25. Qg5+ {[%clk 0:01:47]}  Kh7 {[%clk 0:01:09]} 26. Qh5+ {[%clk 0:01:46]}  Kg7 {[%clk 0:00:46]} 27. Qg5+ {[%clk 0:01:43]}  Kh7 {[%clk 0:00:41]} 28. Qh5+ {[%clk 0:01:42]}  Kg7 {[%clk 0:00:40]} 1/2-1/2


[Site "https://www.chess.com"]

[Event "Titled Tuesday Blitz May 2 Early 2023"]
[White "Munoz, Francisco Javier"]
[Black "Omelja, Artem"]
[WhiteFideId "128368"]
[BlackFideId "14119846"]
[WhiteElo "2383"]
[BlackElo "2404"]
[Result "0-1"]
[Round "06"]
[TimeControl "180+2"]
[Date "2023.05.02"]
[WhiteClock "0:00:03"]
[BlackClock "0:00:02"]

1. e4 {[%clk 0:03:00]}  c5 {[%clk 0:02:59]} 2. Nc3 {[%clk 0:03:01]}  g6 {[%clk 0:02:56]} 3. f4 {[%clk 0:03:02]}  Bg7 {[%clk 0:02:56]} 4. Nf3 {[%clk 0:03:03]}  e6 {[%clk 0:02:56]} 5. d4 {[%clk 0:02:58]}  cxd4 {[%clk 0:02:54]} 6. Nxd4 {[%clk 0:02:58]}  Ne7 {[%clk 0:02:51]} 7. Be3 {[%clk 0:02:57]}  O-O {[%clk 0:02:49]} 8. Qf3 {[%clk 0:02:57]}  Nbc6 {[%clk 0:02:48]} 9. O-O-O {[%clk 0:02:57]}  d5 {[%clk 0:02:43]} 10. e5 {[%clk 0:02:41]}  Bd7 {[%clk 0:02:40]} 11. h4 {[%clk 0:02:13]}  f6 {[%clk 0:02:28]} 12. exf6 {[%clk 0:02:12]}  Rxf6 {[%clk 0:02:29]} 13. h5 {[%clk 0:02:11]}  e5 {[%clk 0:02:29]} 14. Nxd5 {[%clk 0:01:21]}  exd4 {[%clk 0:02:12]} 15. Nxf6+ {[%clk 0:01:20]}  Bxf6 {[%clk 0:02:13]} 16. Bc4+ {[%clk 0:01:20]}  Kg7 {[%clk 0:02:05]} 17. Bd2 {[%clk 0:01:12]}  Rc8 {[%clk 0:01:50]} 18. g4 {[%clk 0:01:09]}  Nb4 {[%clk 0:01:33]} 19. Bb3 {[%clk 0:01:05]}  Bc6 {[%clk 0:01:20]} 20. Qh3 {[%clk 0:01:03]}  Bxh1 {[%clk 0:01:08]} 21. Rxh1 {[%clk 0:00:56]}  Kf8 {[%clk 0:00:57]} 22. hxg6 {[%clk 0:00:53]}  hxg6 {[%clk 0:00:58]} 23. Kb1 {[%clk 0:00:42]}  Nbd5 {[%clk 0:00:41]} 24. f5 {[%clk 0:00:38]}  g5 {[%clk 0:00:20]} 25. Qh5 {[%clk 0:00:17]}  Qe8 {[%clk 0:00:17]} 26. Qh6+ {[%clk 0:00:17]}  Bg7 {[%clk 0:00:17]} 27. Qxg5 {[%clk 0:00:16]}  Qf7 {[%clk 0:00:15]} 28. Bb4 {[%clk 0:00:12]}  Rd8 {[%clk 0:00:10]} 29. Re1 {[%clk 0:00:08]}  Qf6 {[%clk 0:00:05]} 30. Qh5 {[%clk 0:00:08]}  Nxb4 {[%clk 0:00:04]} 31. Re6 {[%clk 0:00:07]}  Qf7 {[%clk 0:00:03]} 32. Rg6 {[%clk 0:00:08]}  Nbd5 {[%clk 0:00:01]} 33. Qh7 {[%clk 0:00:06]}  Nxg6 {[%clk 0:00:01]} 34. a3 {[%clk 0:00:04]}  Ne5 {[%clk 0:00:01]} 35. g5 {[%clk 0:00:03]}  d3 {[%clk 0:00:02]} 0-1


[Site "https://www.chess.com"]

[Event "Titled Tuesday Blitz May 2 Early 2023"]
[White "Borgaonkar Akshay"]
[Black "Bychkov, Vladimir"]
[WhiteFideId "25639110"]
[BlackFideId "24151513"]
[WhiteElo "2063"]
[BlackElo "2224"]
[Result "0-1"]
[Round "06"]
[TimeControl "180+2"]
[Date "2023.05.02"]
[WhiteClock "0:00:02"]
[BlackClock "0:00:09"]

1. d4 {[%clk 0:03:00]}  Nf6 {[%clk 0:02:58]} 2. Nc3 {[%clk 0:03:00]}  d5 {[%clk 0:02:57]} 3. Bf4 {[%clk 0:03:01]}  e6 {[%clk 0:02:57]} 4. e3 {[%clk 0:03:00]}  Bb4 {[%clk 0:02:52]} 5. Bd3 {[%clk 0:02:50]}  c5 {[%clk 0:02:49]} 6. a3 {[%clk 0:02:48]}  Bxc3+ {[%clk 0:02:49]} 7. bxc3 {[%clk 0:02:48]}  Qa5 {[%clk 0:02:48]} 8. Qd2 {[%clk 0:02:48]}  c4 {[%clk 0:02:48]} 9. Bf1 {[%clk 0:02:15]}  Ne4 {[%clk 0:02:48]} 10. Qc1 {[%clk 0:02:15]}  Qxc3+ {[%clk 0:02:47]} 11. Ke2 {[%clk 0:02:16]}  Nc6 {[%clk 0:02:35]} 12. f3 {[%clk 0:02:14]}  g5 {[%clk 0:02:28]} 13. Bc7 {[%clk 0:02:05]}  Nf6 {[%clk 0:02:15]} 14. Bg3 {[%clk 0:02:05]}  e5 {[%clk 0:02:01]} 15. Be1 {[%clk 0:02:02]}  Nxd4+ {[%clk 0:01:59]} 16. exd4 {[%clk 0:02:03]}  Qxd4 {[%clk 0:01:58]} 17. Bf2 {[%clk 0:02:03]}  Qf4 {[%clk 0:01:47]} 18. Be3 {[%clk 0:01:54]}  Qf5 {[%clk 0:01:44]} 19. Bxg5 {[%clk 0:01:54]}  Rg8 {[%clk 0:01:43]} 20. Bxf6 {[%clk 0:01:54]}  Qxf6 {[%clk 0:01:43]} 21. Kf2 {[%clk 0:01:51]}  Bf5 {[%clk 0:01:30]} 22. Ne2 {[%clk 0:01:45]}  O-O-O {[%clk 0:01:22]} 23. Rb1 {[%clk 0:01:44]}  d4 {[%clk 0:01:19]} 24. Ng3 {[%clk 0:01:39]}  Bg6 {[%clk 0:01:00]} 25. Qb2 {[%clk 0:01:33]}  Qc6 {[%clk 0:00:59]} 26. Bxc4 {[%clk 0:01:31]}  e4 {[%clk 0:00:49]} 27. fxe4 {[%clk 0:01:26]}  Bxe4 {[%clk 0:00:48]} 28. Bd3 {[%clk 0:01:21]}  Bxg2 {[%clk 0:00:47]} 29. Rhe1 {[%clk 0:01:20]}  Qf3+ {[%clk 0:00:40]} 30. Kg1 {[%clk 0:01:18]}  Rxg3 {[%clk 0:00:40]} 31. hxg3 {[%clk 0:00:57]}  Qxg3 {[%clk 0:00:37]} 32. Re2 {[%clk 0:00:57]}  Bc6+ {[%clk 0:00:15]} 33. Kf1 {[%clk 0:00:55]}  Rd6 {[%clk 0:00:15]} 34. Rf2 {[%clk 0:00:45]}  Qh3+ {[%clk 0:00:14]} 35. Ke1 {[%clk 0:00:42]}  Re6+ {[%clk 0:00:14]} 36. Kd1 {[%clk 0:00:37]}  Bf3+ {[%clk 0:00:09]} 37. Be2 {[%clk 0:00:13]}  Bxe2+ {[%clk 0:00:09]} 38. Kd2 {[%clk 0:00:06]}  Qh6+ {[%clk 0:00:07]} 39. Ke1 {[%clk 0:00:06]}  Qh1+ {[%clk 0:00:07]} 40. Kd2 {[%clk 0:00:06]}  Qh6+ {[%clk 0:00:08]} 41. Ke1 {[%clk 0:00:06]}  Bg4+ {[%clk 0:00:08]} 42. Kf1 {[%clk 0:00:02]}  Qh1# {[%clk 0:00:09]} 0-1


[Site "https://www.chess.com"]

[Event "Titled Tuesday Blitz May 2 Early 2023"]
[White "Korchmar, Vasiliy"]
[Black "Reefat, Bin-Sattar"]
[WhiteFideId "24131750"]
[BlackFideId "10200207"]
[WhiteElo "2370"]
[BlackElo "2462"]
[Result "1-0"]
[Round "06"]
[TimeControl "180+2"]
[Date "2023.05.02"]
[WhiteClock "0:00:13"]
[BlackClock "0:00:01"]

1. e4 {[%clk 0:02:57]}  e6 {[%clk 0:02:57]} 2. d4 {[%clk 0:02:57]}  d5 {[%clk 0:02:58]} 3. e5 {[%clk 0:02:57]}  c5 {[%clk 0:02:57]} 4. c3 {[%clk 0:02:58]}  Nc6 {[%clk 0:02:58]} 5. Nf3 {[%clk 0:02:57]}  Bd7 {[%clk 0:02:58]} 6. Be2 {[%clk 0:02:53]}  Nge7 {[%clk 0:02:57]} 7. Na3 {[%clk 0:02:52]}  cxd4 {[%clk 0:02:50]} 8. cxd4 {[%clk 0:02:52]}  Nf5 {[%clk 0:02:50]} 9. Nc2 {[%clk 0:02:52]}  a5 {[%clk 0:02:46]} 10. O-O {[%clk 0:02:50]}  h5 {[%clk 0:02:44]} 11. Bd3 {[%clk 0:02:48]}  Be7 {[%clk 0:02:39]} 12. g3 {[%clk 0:02:31]}  g5 {[%clk 0:02:07]} 13. Bxf5 {[%clk 0:02:22]}  exf5 {[%clk 0:02:06]} 14. Ne3 {[%clk 0:01:45]}  Be6 {[%clk 0:02:04]} 15. Qd3 {[%clk 0:01:35]}  Qd7 {[%clk 0:01:58]} 16. Ng2 {[%clk 0:01:35]}  Rg8 {[%clk 0:01:48]} 17. h4 {[%clk 0:01:30]}  f4 {[%clk 0:01:33]} 18. Nxg5 {[%clk 0:01:23]}  Bxg5 {[%clk 0:01:26]} 19. hxg5 {[%clk 0:01:24]}  Bf5 {[%clk 0:01:23]} 20. Qc3 {[%clk 0:01:04]}  f3 {[%clk 0:00:58]} 21. Nh4 {[%clk 0:00:56]}  Be4 {[%clk 0:00:57]} 22. Kh2 {[%clk 0:00:47]}  Qg4 {[%clk 0:00:49]} 23. Qc5 {[%clk 0:00:40]}  Rd8 {[%clk 0:00:10]} 24. Bf4 {[%clk 0:00:36]}  Ne7 {[%clk 0:00:09]} 25. Qb5+ {[%clk 0:00:31]}  Rd7 {[%clk 0:00:08]} 26. Rfc1 {[%clk 0:00:30]}  Rxg5 {[%clk 0:00:04]} 27. Bxg5 {[%clk 0:00:26]}  Qxg5 {[%clk 0:00:04]} 28. Rc7 {[%clk 0:00:26]}  Bf5 {[%clk 0:00:03]} 29. Nxf5 {[%clk 0:00:18]}  Qxf5 {[%clk 0:00:02]} 30. Qxd7+ {[%clk 0:00:16]}  Qxd7 {[%clk 0:00:01]} 31. Rxd7 {[%clk 0:00:17]}  Kxd7 {[%clk 0:00:02]} 32. Rd1 {[%clk 0:00:17]}  Nc6 {[%clk 0:00:03]} 33. Rd3 {[%clk 0:00:16]}  Ke6 {[%clk 0:00:03]} 34. Kh3 {[%clk 0:00:15]}  b5 {[%clk 0:00:01]} 35. Kh4 {[%clk 0:00:15]}  b4 {[%clk 0:00:01]} 36. Kxh5 {[%clk 0:00:15]}  a4 {[%clk 0:00:01]} 37. g4 {[%clk 0:00:13]} 1-0


[Site "https://www.chess.com"]

[Event "Titled Tuesday Blitz May 2 Early 2023"]
[White "Vaibhav Jayant Raut"]
[Black "Yeritsyan, Hayk"]
[WhiteFideId "5089034"]
[BlackFideId "13307320"]
[WhiteElo "2156"]
[BlackElo "2241"]
[Result "1-0"]
[Round "06"]
[TimeControl "180+2"]
[Date "2023.05.02"]
[WhiteClock "0:00:04"]
[BlackClock "0:00:04"]

1. d4 {[%clk 0:02:28]}  f5 {[%clk 0:02:52]} 2. g3 {[%clk 0:02:28]}  Nf6 {[%clk 0:02:50]} 3. Bg2 {[%clk 0:02:28]}  g6 {[%clk 0:02:51]} 4. c4 {[%clk 0:02:28]}  Bg7 {[%clk 0:02:52]} 5. Nc3 {[%clk 0:02:28]}  O-O {[%clk 0:02:52]} 6. Nf3 {[%clk 0:02:29]}  d6 {[%clk 0:02:53]} 7. O-O {[%clk 0:02:30]}  c6 {[%clk 0:02:53]} 8. b3 {[%clk 0:02:25]}  a5 {[%clk 0:02:52]} 9. Bb2 {[%clk 0:02:24]}  Qe8 {[%clk 0:02:52]} 10. Na4 {[%clk 0:02:23]}  Nbd7 {[%clk 0:02:48]} 11. Nd2 {[%clk 0:02:22]}  e5 {[%clk 0:02:43]} 12. dxe5 {[%clk 0:02:22]}  dxe5 {[%clk 0:02:34]} 13. c5 {[%clk 0:02:22]}  Nd5 {[%clk 0:02:28]} 14. Nc4 {[%clk 0:02:20]}  Qe6 {[%clk 0:02:20]} 15. e4 {[%clk 0:01:53]}  N5f6 {[%clk 0:02:05]} 16. exf5 {[%clk 0:01:49]}  gxf5 {[%clk 0:02:06]} 17. Nab6 {[%clk 0:01:37]}  Nxb6 {[%clk 0:02:03]} 18. Nxb6 {[%clk 0:01:38]}  Rb8 {[%clk 0:02:04]} 19. Qd2 {[%clk 0:01:24]}  Nd7 {[%clk 0:01:55]} 20. Qxa5 {[%clk 0:01:21]}  Nxb6 {[%clk 0:01:52]} 21. cxb6 {[%clk 0:01:22]}  Bd7 {[%clk 0:01:50]} 22. Rad1 {[%clk 0:01:19]}  Be8 {[%clk 0:01:49]} 23. Qc5 {[%clk 0:01:12]}  Bh5 {[%clk 0:01:47]} 24. Rd6 {[%clk 0:01:11]}  Qe7 {[%clk 0:01:46]} 25. Rxc6 {[%clk 0:01:10]}  Rfe8 {[%clk 0:01:14]} 26. Qxe7 {[%clk 0:01:03]}  Rxe7 {[%clk 0:01:15]} 27. Rc7 {[%clk 0:01:04]}  Rxc7 {[%clk 0:01:04]} 28. bxc7 {[%clk 0:01:05]}  Rc8 {[%clk 0:01:04]} 29. Rc1 {[%clk 0:01:05]}  e4 {[%clk 0:01:00]} 30. Bxg7 {[%clk 0:00:54]}  Kxg7 {[%clk 0:01:01]} 31. h3 {[%clk 0:00:52]}  Kf6 {[%clk 0:00:59]} 32. g4 {[%clk 0:00:51]}  Bg6 {[%clk 0:00:59]} 33. f3 {[%clk 0:00:47]}  fxg4 {[%clk 0:00:40]} 34. fxg4 {[%clk 0:00:38]}  Ke5 {[%clk 0:00:39]} 35. Rc4 {[%clk 0:00:36]}  Kd5 {[%clk 0:00:20]} 36. h4 {[%clk 0:00:31]}  b5 {[%clk 0:00:21]} 37. Rc1 {[%clk 0:00:30]}  Kd4 {[%clk 0:00:18]} 38. h5 {[%clk 0:00:27]}  Bf7 {[%clk 0:00:18]} 39. Rd1+ {[%clk 0:00:26]}  Ke5 {[%clk 0:00:18]} 40. Rc1 {[%clk 0:00:19]}  Kf4 {[%clk 0:00:16]} 41. Kf2 {[%clk 0:00:15]}  Be6 {[%clk 0:00:14]} 42. g5 {[%clk 0:00:11]}  Bg4 {[%clk 0:00:11]} 43. g6 {[%clk 0:00:09]}  hxg6 {[%clk 0:00:11]} 44. hxg6 {[%clk 0:00:10]}  e3+ {[%clk 0:00:07]} 45. Ke1 {[%clk 0:00:09]}  Bf3 {[%clk 0:00:05]} 46. Bxf3 {[%clk 0:00:07]}  Kxf3 {[%clk 0:00:06]} 47. g7 {[%clk 0:00:08]}  b4 {[%clk 0:00:04]} 48. Rc6 {[%clk 0:00:08]}  Ke4 {[%clk 0:00:04]} 49. g8=Q {[%clk 0:00:05]}  Rxg8 {[%clk 0:00:04]} 50. c8=Q {[%clk 0:00:05]}  Rg1+ {[%clk 0:00:05]} 51. Ke2 {[%clk 0:00:06]}  Rg2+ {[%clk 0:00:06]} 52. Kf1 {[%clk 0:00:06]}  Rf2+ {[%clk 0:00:06]} 53. Kg1 {[%clk 0:00:06]}  Rxa2 {[%clk 0:00:05]} 54. Qe6+ {[%clk 0:00:05]}  Kf3 {[%clk 0:00:05]} 55. Qh3+ {[%clk 0:00:04]}  Ke2 {[%clk 0:00:04]} 56. Qg2+ {[%clk 0:00:03]}  Ke1 {[%clk 0:00:04]} 57. Qxa2 {[%clk 0:00:03]}  e2 {[%clk 0:00:04]} 58. Rc1# {[%clk 0:00:04]} 1-0


[Site "https://www.chess.com"]